Workbook

Sheet Income
A1: Manchester County Bridge Association | K1: Accounts 2017 - 2018
A3: Income | S3: (March) | T3: (July)
M4: League & | R4: Merville | S4: Pairs | T4: Teams | W4: Intermediate | X4: Handbook | Y4: Summer | Z4: Autumn | AC4: Players Progress | AD4: EBU delegate | AF4: Outstanding | AG4: Prior Year
G5: EBU | H5: EBU | I5: EBU P2P | J5: EBU P2P | K5: MCBA | L5: EBU | M5: Cup | N5: Higson | O5: Over | P5: EBU | Q5: Gazette | R5: Goldstone | S5: Green | T5: Green | U5: Manchester | V5: Ben | W5: Swiss | X5: Expenses | Y5: Intermediate | Z5: Intermediate | AA5: Cantor Cup | AB5: Newcomers | AC5: and Kevin Comrie | AD5: Expenses | AE5: Seminars | AF5: from previous | AG5: Corrections | AH5: Totals | AJ5: League
A6: Date | B6: Reference | C6: Details | D6: Other | E6: Cash | F6: Bank | G6: Direct Membs | H6: P2P (clubs) | I6: League | J6: Cup | K6: Affiliates | L6: League | M6: >4 players | N6: Cup & Plate | O6: Payment | P6: BFA | Q6: Trophy | R6: Trophy | S6: Points | T6: Points | U6: Congress | V6: Franks | W6: (S Triggs) | Y6: Pairs | Z6: Pairs | AB6: League | AC6: Cups | AF6: Year | AM6: check
C8: B/Fwd Balance | F8: 8551.72 | AH8: =F8+E8 -> 8551.72
A10: 03/04/17 | C10: New Connections (in op debtors) | F10: 5 | AF10: =F10 -> 5 | AH10: =SUM(G10:AG10) -> 5 | AM10: =F10-AH10 -> 0
A11: 05/04/17 | C11: 4 Bridgemates (in op debtors) | F11: 5 | AF11: =F11 -> 5 | AH11: =SUM(G11:AG11) -> 5 | AM11: =F11-AH11 -> 0
A12: 05/04/17 | C12: March P2P (in op debtors) | F12: 318.08 | AF12: 318.08 | AH12: 318.08 | AM12: 0
AH13: 0 | AM13: 0
A14: 01/06/17 | C14: EBU P2P April | F14: 109.2 | H14: 109.2 | AH14: 109.2 | AM14: 0
A15: 12/06/17 | C15: EBU direct subscriptions | F15: 235 | G15: 235 | AH15: 235 | AM15: 0
A16: 13/06/17 | C16: 10175 Summer Intermediate Pairs | F16: 176 | Y16: =F16 -> 176 | AH16: 176 | AM16: 0
A17: 13/07/17 | C17: Smash The System (League, Cup and one extra player) | F17: 55 | L17: 35 | M17: 5 | N17: 15 | AH17: 55 | AJ17: =F17 -> 55 | AK17: =O17+N17+M17+L17+K17 -> 55 | AM17: 0
A18: 12/07/17 | C18: Sedgley (League, Cup + 2 affiliation fees) | F18: 62 | K18: 12 | L18: 35 | N18: 15 | AH18: 62 | AJ18: =F18 -> 62 | AK18: =O18+N18+M18+L18+K18 -> 62 | AM18: 0
A19: 12/07/17 | C19: Double Trouble (League) | F19: 35 | L19: 35 | AH19: 35 | AJ19: 35 | AK19: 35 | AM19: 0
A20: 10/07/17 | C20: Tempo (League,Cup + 3 extra players) | F20: 65 | L20: 35 | M20: 15 | N20: 15 | AH20: 65 | AJ20: 65 | AK20: 65 | AM20: 0
A21: 10/07/17 | C21: Tempo (extra player + affiliation fee) | F21: 11 | K21: 6 | M21: 5 | AH21: 11 | AJ21: 11 | AK21: 11 | AM21: 0
A22: 20/07/17 | C22: Ashton Aces (league and cup) | F22: 50 | L22: 35 | N22: 15 | AH22: 50 | AJ22: 50 | AK22: 50 | AM22: 0
A23: 14/07/17 | C23: DASH (League, Cup, 2 extra players, 1 affiliation fee) | F23: 66 | K23: 6 | L23: 35 | M23: 10 | N23: 15 | AH23: 66 | AJ23: 66 | AK23: 66 | AM23: 0
A24: 17/07/17 | C24: Altrincham A (League, Cup , 1 extra player) | F24: 55 | L24: 35 | M24: 5 | N24: 15 | AH24: 55 | AJ24: 55 | AK24: 55 | AM24: 0
A25: 22/07/17 | C25: Tricksters (League and Cup) | F25: 50 | L25: 35 | N25: 15 | AH25: 50 | AJ25: 50 | AK25: 50 | AM25: 0
A26: 03/08/17 | C26: Pack Choice | F26: 35 | L26: 35 | AH26: 35 | AJ26: 35 | AK26: 35 | AM26: 0
A27: 02/08/17 | C27: Proteus (League and Cup) | F27: 50 | L27: 35 | N27: 15 | AH27: 50 | AJ27: 50 | AK27: 50 | AM27: 0
A28: 25/07/17 | C28: Grasshoppers (league + 1 extra player) | F28: 40 | L28: 35 | M28: 5 | AH28: 40 | AJ28: 40 | AK28: 40 | AM28: 0
A29: 04/08/17 | C29: Curry Eaters | F29: 73 | K29: 18 | L29: 35 | M29: 5 | N29: 15 | AH29: 73 | AJ29: 73 | AK29: 73 | AM29: 0
A30: 24/07/17 | C30: 10720 Rhona banking Alty Swiss Teams | F30: 1956 | T30: =F30 -> 1956 | AH30: 1956 | AM30: 0
A31: 06/07/17 | C31: Terrific Twos | F31: 60 | L31: 35 | M31: 10 | N31: 15 | AH31: 60 | AJ31: =F31 -> 60 | AK31: =O31+N31+M31+L31+K31 -> 60 | AM31: 0
A32: 10/07/17 | C32: Last Minute Dot Bid | F32: 60 | L32: 35 | M32: 10 | N32: 15 | AH32: 60 | AJ32: =F32 -> 60 | AK32: 60 | AM32: 0
A33: 10/07/17 | C33: Three Reds and a Rebel | F33: 35 | L33: 35 | AH33: 35 | AJ33: 35 | AK33: 35 | AM33: 0
A34: 10/07/17 | C34: Cheshire Cheeses | F34: 118 | K34: 48 | L34: 35 | M34: 20 | N34: 15 | AH34: 118 | AJ34: 118 | AK34: 118 | AM34: 0
A35: 10/07/17 | C35: Mouldy Mutton Tour | F35: 35 | L35: 35 | AH35: 35 | AJ35: 35 | AK35: 35 | AM35: 0
A36: 10/07/17 | C36: Midland Railway | F36: 55 | L36: 35 | M36: 5 | N36: 15 | AH36: 55 | AJ36: 55 | AK36: 55 | AM36: 0
A37: 10/07/17 | C37: Isolated Menaces | F37: 50 | L37: 35 | N37: 15 | AH37: 50 | AJ37: 50 | AK37: 50 | AM37: 0
A38: 11/07/17 | C38: Radbroke Bandits | F38: 35 | L38: 35 | AH38: 35 | AJ38: 35 | AK38: 35 | AM38: 0
A39: 11/07/17 | C39: The 4 Dummies | F39: 55 | L39: 35 | M39: 5 | N39: 15 | AH39: 55 | AJ39: 55 | AK39: 55 | AM39: 0
A40: 11/07/17 | C40: Adlan | F40: 40 | L40: 35 | M40: 5 | AH40: 40 | AJ40: 40 | AK40: 40 | AM40: 0
A41: 11/07/17 | C41: The Enigmas | F41: 65 | L41: 35 | M41: 15 | N41: 15 | AH41: 65 | AJ41: 65 | AK41: 65 | AM41: 0
A42: 12/07/17 | C42: Uppercut | F42: 35 | L42: 35 | AH42: 35 | AJ42: 35 | AK42: 35 | AM42: 0
A43: 13/07/17 | C43: Red Bull | F43: 50 | L43: 35 | N43: 15 | AH43: 50 | AJ43: 50 | AK43: 50 | AM43: 0
A44: 14/07/17 | C44: Leaders with Attitude | F44: 35 | L44: 35 | AH44: 35 | AJ44: 35 | AK44: 35 | AM44: 0
A45: 14/07/17 | C45: Mouldy Mutton Tour | F45: 6 | K45: 6 | AH45: 6 | AJ45: 6 | AK45: 6 | AM45: 0
A46: 14/07/17 | C46: Petersfield | F46: 55 | L46: 35 | M46: 5 | N46: 15 | AH46: 55 | AJ46: 55 | AK46: 55 | AM46: 0
A47: 17/07/17 | C47: Manchester A | F47: 50 | L47: 35 | N47: 15 | AH47: 50 | AJ47: 50 | AK47: 50 | AM47: 0
A48: 17/07/17 | C48: Touching the Void (cup to refund £15) | F48: 50 | L48: 35 | O48: 15 | AH48: 50 | AJ48: 50 | AK48: 50 | AM48: 0
A49: 17/07/17 | C49: The Transfers | F49: 40 | L49: 35 | M49: 5 | AH49: 40 | AJ49: 40 | AK49: 40 | AM49: 0
A50: 17/07/17 | C50: Trafford Tigers | F50: 40 | L50: 35 | O50: 5 | AH50: 40 | AJ50: 40 | AK50: 40 | AM50: 0
A51: 20/07/17 | C51: Hydrangeas | F51: 60 | L51: 35 | M51: 10 | N51: 15 | AH51: 60 | AJ51: 60 | AK51: 60 | AM51: 0
A52: 20/07/17 | C52: EBU P2P May | F52: 316.26 | H52: 316.26 | AH52: 316.26 | AM52: 0
A53: 24/07/17 | C53: New Connections | F53: 50 | L53: 35 | N53: 15 | AH53: 50 | AJ53: =F53 -> 50 | AK53: =O53+N53+M53+L53+K53 -> 50 | AM53: 0
A54: 24/07/17 | C54: Biddables??? | F54: 41 | L54: 35 | O54: 6 | AH54: 41 | AJ54: =F54 -> 41 | AK54: 41 | AM54: 0
A55: 25/07/17 | C55: Winning Ways | F55: 35 | L55: 35 | AH55: 35 | AJ55: 35 | AK55: 35 | AM55: 0
A56: 27/07/17 | C56: Bank | F56: 35 | L56: 35 | AH56: 35 | AJ56: 35 | AK56: 35 | AM56: 0
A57: 02/08/17 | C57: Newcomers | F57: 35 | L57: 35 | AH57: 35 | AJ57: 35 | AK57: 35 | AM57: 0
A58: 02/08/17 | C58: Double diamonds | F58: 35 | L58: 35 | AH58: 35 | AJ58: 35 | AK58: 35 | AM58: 0
A59: 03/08/17 | C59: EBU (June P2P and direct memberships) | F59: 126.58 | G59: 15 | H59: 111.58 | AH59: 126.58 | AM59: 0
A60: 09/08/17 | C60: Splinter Group | F60: 50 | L60: 35 | N60: 15 | AH60: 50 | AJ60: =F60 -> 50 | AK60: =O60+N60+M60+L60+K60 -> 50 | AM60: 0
A61: 09/08/17 | C61: Chorlton Challengers (Alison Pardoe) | F61: 35 | L61: 35 | AH61: 35 | AJ61: =F61 -> 35 | AK61: 35 | AM61: 0
A62: 10/08/17 | C62: 5 Go Bridging | F62: 55 | L62: 35 | M62: 5 | O62: 15 | AH62: 55 | AJ62: 55 | AK62: 55 | AM62: 0
A63: 10/08/17 | C63: Ashton United | F63: 52 | K63: 12 | L63: 35 | M63: 5 | AH63: 52 | AJ63: 52 | AK63: 52 | AM63: 0
A64: 10/08/17 | C64: EBU (April direct memberships) | F64: 15 | G64: 15 | AH64: 15 | AM64: 0
A65: 11/08/17 | C65: Wild at Heart | F65: 45 | L65: 35 | M65: 10 | AH65: 45 | AJ65: =F65 -> 45 | AK65: =O65+N65+M65+L65+K65 -> 45 | AM65: 0
A66: 15/08/17 | C66: A Bridge Too Far | F66: 81 | L66: 35 | M66: 10 | O66: 36 | AH66: 81 | AJ66: =F66 -> 81 | AK66: 81 | AM66: 0
A67: 16/08/17 | C67: 4 Bridgemates | F67: 35 | L67: 35 | AH67: =SUM(G67:AG67) -> 35 | AJ67: 35 | AK67: 35 | AM67: =F67-AH67 -> 0
A68: 23/08/17 | C68: Hindsight Convention | F68: 67 | K68: 12 | L68: 35 | M68: 5 | N68: 15 | AH68: 67 | AJ68: 67 | AK68: 67 | AM68: 0
A69: 25/08/17 | C69: North Star | F69: 66 | K69: 6 | L69: 35 | M69: 10 | N69: 15 | AH69: 66 | AJ69: 66 | AK69: 66 | AM69: 0
A70: 25/08/17 | C70: City Aces | F70: 67 | K70: 6 | L70: 35 | M70: 10 | N70: 15 | O70: 1 | AH70: 67 | AJ70: 67 | AK70: 67 | AM70: 0
A71: 29/08/17 | C71: Overtrick Lunatics | F71: 50 | L71: 35 | N71: 15 | AH71: 50 | AJ71: 50 | AK71: 50 | AM71: 0
A72: 31/08/17 | C72: EBU P2P July | F72: 295.26 | H72: 295.26 | AH72: 295.26 | AM72: 0
A73: 01/09/17 | C73: Imps are us | F73: 96 | K73: 36 | L73: 35 | M73: 10 | N73: 15 | AH73: 96 | AJ73: =F73 -> 96 | AK73: =O73+N73+M73+L73+K73 -> 96 | AM73: 0
A74: 04/09/17 | C74: Agamemnon | F74: 55 | L74: 35 | M74: 5 | N74: 15 | AH74: 55 | AJ74: =F74 -> 55 | AK74: 55 | AM74: 0
A75: 08/09/17 | C75: Inverted Minors | F75: 66 | K75: 6 | L75: 35 | M75: 10 | N75: 15 | AH75: 66 | AJ75: =F75 -> 66 | AK75: 66 | AM75: 0
A76: 08/09/17 | C76: Altrincham Z | F76: 35 | L76: 35 | AH76: 35 | AJ76: =F76 -> 35 | AK76: 35 | AM76: 0
A77: 08/09/17 | C77: EBU | F77: 35 | G77: 35 | AH77: 35 | AM77: 0
A78: 11/09/17 | C78: Bombay Saphires | F78: 35 | L78: 35 | AH78: 35 | AJ78: =F78 -> 35 | AK78: =O78+N78+M78+L78+K78 -> 35 | AM78: 0
A79: 11/09/17 | C79: Astrazenaca Stars | F79: 60 | L79: 35 | M79: 10 | N79: 15 | AH79: 60 | AJ79: =F79 -> 60 | AK79: 60 | AM79: 0
A80: 11/09/17 | C80: Team Mahem | F80: 62 | K80: 12 | L80: 35 | N80: 15 | AH80: 62 | AJ80: 62 | AK80: 62 | AM80: 0
A81: 12/09/17 | C81: Bridge under Troubled Waters | F81: 45 | L81: 35 | M81: 10 | AH81: 45 | AJ81: 45 | AK81: 45 | AM81: 0
A82: 12/09/17 | C82: Jems | F82: 45 | L82: 35 | M82: 10 | AH82: 45 | AJ82: 45 | AK82: 45 | AM82: 0
A83: 13/09/17 | C83: Rejuvenated | F83: 78 | K83: 6 | L83: 35 | N83: 15 | O83: 22 | AH83: 78 | AJ83: 78 | AK83: 78 | AM83: 0
A84: 19/09/17 | C84: Skaters | F84: 55 | L84: 35 | M84: 5 | N84: 15 | AH84: 55 | AJ84: 55 | AK84: 55 | AM84: 0
A85: 21/09/17 | C85: Ashton Aces | F85: 12 | K85: 12 | AH85: 12 | AJ85: 12 | AK85: 12 | AM85: 0
A86: 25/09/17 | C86: Sedgley | F86: 11 | K86: 6 | M86: 5 | AH86: 11 | AJ86: 11 | AK86: 11 | AM86: 0
A87: 25/09/17 | C87: New Connections | F87: 5 | M87: 5 | AH87: 5 | AJ87: 5 | AK87: 5 | AM87: 0
A88: 20/09/17 | C88: St Titus | F88: 20 | K88: 0 | L88: 35 | M88: 5 | N88: 15 | O88: 5 | AG88: -40 | AH88: 20 | AJ88: 20 | AK88: 60 | AM88: 0
A89: 26/09/17 | C89: EBU P2P August | F89: 126.98 | H89: 126.98 | AH89: 126.98 | AM89: 0
A90: 02/10/17 | C90: Manchester S | F90: 45.5 | L90: 35 | N90: 10.5 | AH90: 45.5 | AJ90: =F90 -> 45.5 | AK90: =O90+N90+M90+L90+K90 -> 45.5 | AM90: 0
A91: 02/10/17 | C91: Monton Misfits | F91: 60 | L91: 35 | M91: 10 | N91: 15 | AH91: 60 | AJ91: =F91 -> 60 | AK91: 60 | AM91: 0
A92: 02/10/17 | C92: Curry Eaters | F92: 11 | K92: 6 | M92: 5 | AH92: 11 | AJ92: 11 | AK92: 11 | AM92: 0
A93: 02/10/17 | C93: Rueful Rabbits | F93: 35 | L93: 35 | AH93: 35 | AJ93: 35 | AK93: 35 | AM93: 0
A94: 03/10/17 | C94: Mouldly Mutton Tours | F94: 6 | K94: 6 | AH94: 6 | AJ94: 6 | AK94: 6 | AM94: 0
A95: 03/10/17 | C95: Take the money and run (Graham Burns) | F95: 40 | L95: 35 | M95: 5 | AH95: 40 | AJ95: 40 | AK95: 40 | AM95: 0
A96: 12/10/17 | C96: EBU (Subs Sept) | F96: 25 | G96: 25 | AH96: 25 | AM96: 0
A97: 16/10/17 | C97: Ashton United | F97: 6 | K97: 6 | AH97: 6 | AJ97: =F97 -> 6 | AK97: =O97+N97+M97+L97+K97 -> 6 | AM97: 0
A98: 16/10/17 | C98: Alison Pardoe | F98: 15 | M98: 15 | AH98: 15 | AJ98: =F98 -> 15 | AK98: 15 | AM98: 0
A99: 17/10/17 | C99: Alison Pardoe | F99: 5 | M99: 5 | AH99: 5 | AJ99: 5 | AK99: 5 | AM99: 0
A100: 26/10/17 | C100: EBU (P2P Sept) | F100: 290.57 | H100: 290.57 | AH100: 290.57 | AM100: 0
A101: 31/10/17 | C101: Petersfield | F101: 5 | M101: 5 | AH101: 5 | AJ101: =F101 -> 5 | AK101: 5 | AM101: 0
A102: 01/11/17 | C102: Conquering Hearts | F102: 65 | L102: 35 | M102: 15 | N102: 15 | AH102: 65 | AJ102: =F102 -> 65 | AK102: 65 | AM102: 0
A103: 01/11/17 | C103: Tricksters | F103: 5 | M103: 5 | AH103: 5 | AJ103: 5 | AK103: 5 | AM103: 0
A104: 03/11/17 | C104: 10175 Autumn Intermediate Pairs cheques | F104: 160 | Z104: 160 | AH104: 160 | AM104: 0
A105: 20/11/17 | C105: 10175 Autumn Intermediate Pairs cheques | F105: 16 | Z105: 16 | AH105: 16 | AM105: 0
A106: 30/11/17 | C106: EBU P2P Oct 17 | F106: 104.16 | H106: 104.16 | AH106: 104.16 | AM106: 0
A107: 07/12/17 | C107: Conquering Hearts | F107: 5 | O107: 5 | AH107: 5 | AJ107: =F107 -> 5 | AK107: =O107+N107+M107+L107+K107 -> 5 | AM107: 0
A108: 05/01/18 | C108: EBU P2P Nov 17 | F108: 286.65 | H108: 286.65 | AH108: 286.65 | AM108: 0
A109: 08/01/18 | C109: Congress Receipts (£32 returned to Susan Triggs Cheque no 1493) | F109: =496+6115 -> 6611 | U109: 6611 | AH109: 6611 | AM109: 0
A110: 15/01/18 | C110: Splinter Group (John Moran) | F110: 5 | O110: 5 | AH110: 5 | AJ110: =F110 -> 5 | AK110: 5 | AM110: 0
A111: 25/01/18 | C111: EBU P2P Dec 17 | F111: 93.1 | H111: 93.1 | AH111: 93.1 | AM111: 0
A112: 06/02/18 | C112: Jeanne Bayley Gazzette Cup Entry Marple | F112: 80 | Q112: 80 | AH112: 80 | AM112: 0
A113: 07/02/18 | C113: Ann Thornton banking Gazzette Cup | F113: 555 | Q113: 555 | AH113: 555 | AM113: 0
A114: 07/02/18 | C114: Ann Thornton banking Ben Franks | F114: 23 | V114: 23 | AH114: 23 | AM114: 0
A115: 12/02/18 | C115: Susan Triggs banking Int Swiss Pairs | F115: 90 | AH115: 0 | AM115: 90
C116: Receipts | E116: 496 | W116: =E116 -> 496 | AH116: 496 | AM116: -496
C117: Prizes | E117: -157 | W117: =E117 -> -157 | AH117: -157 | AM117: 157
C118: Handbooks (unrelated!) | E118: -249 | X118: =E118 -> -249 | AH118: -249 | AM118: 249
A119: 15/02/18 | C119: EBU P2P April 17 adjusted | F119: 73.64 | H119: 73.64 | AH119: =SUM(H119:AG119) -> 73.64 | AM119: 0
A120: 28/02/18 | C120: Karen Sandler Extra player Skaters | F120: 5 | M120: 5 | AH120: =SUM(G120:AG120) -> 5 | AM120: =F120-AH120 -> 0
A121: 28/02/18 | C121: 10175 Cantor Cup cheques | F121: 120 | AA121: 120 | AH121: 120 | AM121: 0
A122: 02/03/18 | C122: EBU P2P Jan 18 | F122: 282.87 | H122: 282.87 | AH122: =SUM(H122:AG122) -> 282.87 | AM122: 0
A123: 05/03/18 | C123: R Goldenfield re March Green point Swiss Pairs | F123: 1845 | S123: 1845 | AH123: 1845 | AM123: 0
A124: 05/03/18 | C124: Cantor Cup transfer | F124: 353.1 | AA124: =353.1-181.1 -> 172 | AF124: 181.1 | AH124: 353.1 | AM124: 0
A125: 29/03/18 | C125: EBU P2P Feb | F125: 102.48 | H125: 102.48 | AH125: 102.48 | AM125: 0
AM126: 0
C127: Jems (banked post year end) | K127: 6 | AJ127: 6 | AM127: 0
AM128: 0
A129: Total Income | E129: =SUM(E30:E102) -> 0 | F129: =SUM(F10:F127) -> 18334.43 | G129: 325 | H129: 2192.75 | I129: 0 | J129: 0 | K129: 234 | L129: 2310 | M129: 340 | N129: 550.5 | O129: 115 | P129: 0 | Q129: 635 | R129: 0 | S129: 1845 | T129: 1956 | U129: 6611 | V129: 23 | W129: 339 | X129: -249 | Y129: 176 | Z129: 176 | AA129: 292 | AB129: 0 | AC129: 0 | AD129: 0 | AE129: 0 | AF129: 509.18 | AG129: -40 | AH129: 18334.43 | AI129: 0 | AJ129: 3504.5 | AK129: 3538.5 | AL129: 0 | AM129: 0
M130: 335 | N130: =K129+L129+M129+N129+O129 -> 3549.5
A131: Total Income//Cash | F131: =F129+E129 -> 18334.43 | M131: Haidee £5 | AJ131: 40 | AK131: St Titus £60 Sheet Actual £20
AJ132: =SUM(AJ129:AJ131) -> 3544.5
A133: Expenditure | E133: =' Expenses'!D160 -> 0 | F133: =' Expenses'!F160 -> 22363.83 | G133: 0 | H133: =' Expenses'!G160 -> 0 | I133: =' Expenses'!H160 -> 0 | J133: =' Expenses'!I160 -> 0 | K133: =' Expenses'!J160 -> 0 | L133: =' Expenses'!K160 -> 0 | M133: =' Expenses'!L160 -> 0 | N133: =' Expenses'!M160 -> 51 | O133: =' Expenses'!N160 -> 0 | P133: =' Expenses'!O160 -> 0 | Q133: =' Expenses'!P160 -> 613.9 | R133: =' Expenses'!Q160 -> 0 | S133: =' Expenses'!R160 -> 1064 | T133: =' Expenses'!S160 -> 1495.68 | U133: =' Expenses'!T160 -> 6690.37 | V133: =' Expenses'!U160 -> 46.56 | W133: =' Expenses'!V160 -> 373 | X133: 0 | Y133: =' Expenses'!W160 -> 135 | Z133: =' Expenses'!X160 -> 186.6 | AA133: =' Expenses'!Y160 -> 292 | AB133: =' Expenses'!Z160 -> 0 | AC133: =' Expenses'!AA160 -> 0 | AD133: =' Expenses'!AL160 -> 0 | AE133: =' Expenses'!AR160 -> 362 | AF133: =' Expenses'!AX160 -> 2997.81 | AG133: =' Expenses'!AZ160 -> 0 | AH133: =SUM(G133:AG133) -> 14307.92
A135: Total Expenditure/Cash | F135: =F133+E133 -> 22363.83
A137: Totals( Income less Expenditure + Opening Bals) | F137: =F131-F135+F8+E8 -> 4522.32 | G137: =G129-G133 -> 325 | H137: 2192.75 | I137: 0 | J137: 0 | K137: 234 | L137: =L129-L133 -> 2310 | M137: 340 | N137: =N129-N133 -> 499.5 | O137: =O129-O133 -> 115 | P137: 0 | Q137: 21.1 | R137: 0 | S137: 781 | T137: 460.32 | U137: -79.37 | V137: -23.56 | W137: -34 | X137: -249 | Y137: 41 | Z137: -10.6 | AA137: 0 | AB137: 0 | AC137: 0 | AD137: 0 | AE137: -362 | AF137: -2488.63 | AG137: -40
A139: Cash Held, not yet banked
A141: Sundry Creditors-Unpresented Cheques | F141: =' Expenses'!F167 -> 1089.82
A143: Transfer from Skipton BS
A145: Bank Balance | F145: =F137-F139+F141+F143+F142 -> 5612.14
E146: Agreed to bank 31/03/18

Sheet Reserve Accounts
A1: Skipton Building Society (MCBA)
C3: 2017-18 | D3: 2016-17 | E3: 2015 - 2016 | F3: 2014 - 2015 | G3: 2013 - 2014 | H3: 2012 - 2013 | J3: 2011-2012 | L3: 2010 - 2011 | N3: 2009 - 2010
A5: Balance B/F | C5: =D9 -> 6873.98 | D5: =E9 -> 9793.7 | E5: =F9 -> 11718.7 | F5: =G9 -> 11718.7 | G5: =H9 -> 11644.18 | H5: =J9 -> 11586.88 | J5: =L9 -> 11454.29 | L5: =N9 -> 11239.54 | N5: 11000
A6: Transfer from NatWest | C6: 4000 | D6: -3000 | E6: -2000
A7: Interest/op bal diff | C7: 57.97 | D7: 80.28 | E7: 75 | G7: 74.52 | H7: 57.3 | J7: 132.59 | L7: =11454.29-N9 -> 214.75 | N7: 239.54
A9: Total | C9: =SUM(C5:C8) -> 10931.95 | D9: =SUM(D5:D8) -> 6873.98 | E9: =SUM(E5:E8) -> 9793.7 | F9: =SUM(F5:F8) -> 11718.7 | G9: =G5+G7 -> 11718.7 | H9: =SUM(H5:H8) -> 11644.18 | J9: =J5+J7 -> 11586.88 | L9: =L5+L7 -> 11454.29 | N9: =SUM(N5:N8) -> 11239.54
A12: Building society balance at 31.03.18 | E12: 10901.95
A13: Interest to 25.02.18 not yet added per B Soc. | E13: 25
A14: Interest 26.02.18-31.03.18 (estimated) | E14: 5
A15: Total balance | E15: =SUM(E12:E14) -> 10931.95
A17: Note: it appears a small amount of last years interest was not included in last years accounts

Sheet Expenses
A1: Expenditure | AM1: Travel
AM2: Telephone | AN2: Bridge | AW2: Prepaid
A3: Date | B3: Cheque No | C3: Details | Q3: Merville | R3: Pairs | S3: Teams | V3: Intermediate | W3: Summer | X3: Autumn | AA3: Players Progress | AB3: EBU | AC3: EBU | AD3: MCBA | AE3: Retirement | AF3: EBU | AG3: EBU | AH3: Presidents | AI3: Derbyshire | AJ3: NBL | AK3: All Counties | AL3: EBU | AM3: Printing | AN3: Stationery & | AO3: Handbook | AP3: AGM | AQ3: Youth | AR3: Seminars | AS3: EBU | AT3: Engraving | AU3: Camrose | AV3: Northern | AW3: Room | AX3: Outstanding | AY3: Bank transfer | AZ3: Prior Year | BA3: Totals | BC3: check
D4: Cash | F4: Bank | G4: EBU | H4: EBU P2P | I4: EBU P2P | J4: EBU | K4: EBU | L4: League & Cup | M4: Higson | N4: Over | O4: EBU | P4: Gazette | Q4: Goldstone | R4: Green | S4: Green | T4: Manchester | U4: Ben | V4: Swiss | W4: Intermediate | X4: Intermediate | Y4: Cantor Cup | Z4: Newcomers | AA4: & Kevin Comrie | AB4: Tollemache | AC4: Corwen | AD4: Website | AE4: Gifts/ | AF4: Pachabo | AG4: Garden | AH4: Cup | AI4: Friendly | AK4: Super | AL4: Delegate | AM4: Postage | AN4: Equipment | AO4: Expenses | AP4: Expenses | AQ4: Budget | AS4: Masterpoints | AV4: Counties | AW4: Bookings | AZ4: Corrections
E5: Sub | G5: P2P (clubs) | H5: League | I5: Cup | J5: Affiliates | K5: League | L5: >4 players | M5: Cup & Plate | N5: Payments | O5: BFA | P5: Trophy | Q5: Trophy | R5: Points | S5: Points | T5: Congress | U5: Franks | V5: (S Triggs) | W5: Pairs | X5: Pairs | Z5: League | AA5: Cups | AD5: Fees | AE5: Presentations | AF5: Cup | AG5: Cities | AK5: Final | AL5: Expenses | AM5: Stationery | AN5: Insurance | AV5: Working | AW5: Events etc | AX5: 2016-2017
E6: Addition | AM6: Bank Fees | AV6: Group | AW6: Next Year
A8: Prepaid Room Bookings for 2016-17 | BA8: =SUM(G8:AZ8) -> 0
C11: GP Teams -July 2017 | E11: 184 | S11: =E11 -> 184
C12: Summer Int. Pairs - June 2017 | E12: 92 | W12: =E12 -> 92
C13: Manchester Congress Deposit | E13: 500 | T13: =E13 -> 500
A15: Pre-paid Tournament Fees for 2017-18:
C16: Presidents Cup | E16: 255 | AH16: 255
C17: EBU-Pachabo entry | E17: 219 | AF17: =E17 -> 219
C18: EBU-Garden Cities | E18: 268 | AG18: =E18 -> 268
C19: EBU-Corwen Trophy | E19: 416 | AC19: =E19 -> 416
C20: Stuart Davies-Northern Bridge League | E20: 240 | AJ20: 240
A24: Unpresented cheques in 16/17 Accounts (some written after 31/03/17)
A25: 04/02/17 | B25: 1408 | C25: J.Lewis-Gazette-Directing | F25: 80 | AX25: =F25 -> 80 | BA25: =SUM(G25:AZ25) -> 80 | BC25: =F25-BA25 -> 0
A26: 19/03/17 | B26: 1419 | C26: EBU-Pachabo entry | F26: 219 | AX26: =F26 -> 219 | BA26: 219 | BC26: =F26-BA26 -> 0 | BD26: 2017 prepayment
A27: 19/03/17 | B27: 1420 | C27: EBU-Garden Cities | F27: 268 | AX27: 268 | BA27: 268 | BC27: 0 | BD27: 2017 prepayment
A28: 19/03/17 | B28: 1421 | C28: EBU-Corwen Trophy | F28: 416 | AX28: 416 | BA28: 416 | BC28: 0 | BD28: 2017 prepayment
A29: 24/03/17 | B29: 1423 | C29: J.Lewis - Equipment (Boards £33.37/cards in Boxes £23.86) | F29: 57.23 | AX29: 57.23 | BA29: 57.23 | BC29: 0 | BD29: in 2017 accounts P&L
A30: 31/03/17 | B30: 1424 | C30: K.Nelson - Cup Prizes | F30: 250 | AX30: 250 | BA30: 250 | BC30: 0 | BD30: in 2017 accounts P&L
BA31: 0 | BC31: 0
BA32: 0 | BC32: 0
A33: 27/04/17 | B33: 1425 | C33: New intermediate event (Room Hire £192, Refreshments 96) | F33: 288 | V33: 288 | BA33: 288 | BC33: 0
A34: 27/04/17 | B34: 1426 | C34: MBC-Cup & Plate Finals: Room Hire | F34: 228 | AX34: 228 | BA34: =SUM(G34:AZ34) -> 228 | BC34: 0 | BD34: in 2017 accounts P&L
A35: 27/04/17 | B35: 1429 | C35: J.Lewis - Higson Cup/Plate Finals: | F35: 95 | AX35: 95 | BA35: 95 | BC35: 0 | BD35: in 2017 accounts P&L
C36: Directing | E36: 80 | BA36: 0 | BC36: 0
C37: Hand Records | E37: 15 | BA37: 0 | BC37: 0
C38: ABC-paid for boards | E38: 25 | BA38: 0 | BC38: 0
C39: less:receipts for extra team players: | BA39: 0 | BC39: 0
C40: St Titus | E40: -10 | BA40: 0 | BC40: 0
C41: Mouldy Mutten | E41: -10 | BA41: 0 | BC41: 0
C42: Four Dummies | E42: -5 | BA42: 0 | BC42: 0
A43: 05/05/17 | B43: 1431 | C43: J.Smith - Cup/Plate Finals - Directing | F43: 35 | AX43: 35 | BA43: 35 | BC43: 0 | BD43: in 2017 accounts P&L
A44: 06/05/17 | B44: 1432 | C44: J.Holland - Joint POY (player of Year 2016/17) | F44: 25 | AX44: 25 | BA44: 25 | BC44: 0 | BD44: in 2017 accounts P&L
A45: 06/05/17 | B45: 1433 | C45: A.Mould - Joint POY (player of Year 2016/17) | F45: 25 | AX45: 25 | BA45: 25 | BC45: 0 | BD45: in 2017 accounts P&L
A46: 06/05/17 | B46: 1434 | C46: A.Wiseberg -Intermediate POY (player of Year 2016/17) | F46: 50 | AX46: 50 | BA46: 50 | BC46: 0 | BD46: in 2017 accounts P&L
A47: 09/05/17 | B47: 1435 | C47: EBU-Inv 12579-Congress 2017 Masterpoints | F47: 303.96 | AX47: 303.96 | BA47: 303.96 | BC47: 0 | BD47: in 2017 accounts P&L
A48: 09/05/17 | B48: 1436 | C48: EBU-Inv 12748-Gazette Cup masterpoints | F48: 27 | AX48: 27 | BA48: 27 | BC48: 0 | BD48: in 2017 accounts P&L
A49: 09/05/17 | B49: 1437 | C49: EBU-Inv. 1437 - G.P.Swiss Pairs on 04/03/2017 | F49: 373.86 | AX49: 373.86 | BA49: 373.86 | BC49: 0 | BD49: in 2017 accounts P&L
B50: 1438 | C50: cancelled | BC50: 0
A51: 16/05/17 | B51: 1439 | C51: J.Morris-Expenses-Northern Counties Working Group-18/01/2017 | F51: 60 | AX51: 60 | BA51: =SUM(G51:AZ51) -> 60 | BC51: 0 | BD51: in 2017 accounts P&L
A52: 16/05/17 | B52: 1444 | C52: H.Tattersall-Postage/Stationery etc | F52: 47.18 | AX52: 47.18 | BA52: =SUM(G52:AZ52) -> 47.18 | BC52: 0 | BD52: in 2017 accounts P&L
BA53: =SUM(G53:AZ53) -> 0 | BC53: 0
A54: 27/04/17 | B54: 1427 | C54: J Lewis Intermediate Swiss Pairs (directing and Boards) | F54: 50 | V54: 50 | BA54: 50 | BC54: 0
A55: 27/04/17 | B55: 1428 | C55: Altricham Bridge Club Intermediate Swiss Pairs (Board dealing) | F55: 35 | V55: 35 | BA55: 35 | BC55: 0
A56: 04/05/17 | B56: 1430 | C56: EBU Director training for 3 students (Josh Rocky and Henry) | F56: 141.75 | AQ56: =F56 -> 141.75 | BA56: 141.75 | BC56: 0
A57: 25/05/17 | B57: 1440 | C57: Barbara Lewis AGM wine | F57: 27 | AP57: =F57 -> 27 | BA57: 27 | BC57: 0
A58: 25/05/17 | B58: 1441 | C58: JeffSmith Higson Cup engraving 3 years (16/17???) | F58: 30 | AT58: 30 | BA58: 30 | BC58: 0
A59: 25/05/17 | B59: 1442 | C59: MBC AGM drinks | F59: 24.8 | AP59: =F59 -> 24.8 | BA59: 24.8 | BC59: 0
A60: 01/06/17 | B60: 1443 | C60: Irene Davies AGM expenses | F60: 143.62 | AP60: =F60 -> 143.62 | BA60: 143.62 | BC60: 0
A61: 21/06/17 | B61: 1445 | C61: Barbara Lewis Summer intermediate pairs (11th June) | F61: 43 | BA61: 0 | BC61: 43
C62: Cash income | E62: -268 | W62: -268 | BA62: -268 | BC62: 268
C63: Director-Joan Lewis | E63: 45 | W63: =E63 -> 45 | BA63: 45 | BC63: -45
C64: ABC-equipment | E64: 20 | W64: =E64 -> 20 | BA64: 20 | BC64: -20
C65: Gratuities | E65: 20 | W65: 20 | BA65: 20 | BC65: -20
C66: Stationery | E66: 2 | W66: 2 | BA66: 2 | BC66: -2
C67: Postage | E67: 5.5 | W67: 5.5 | BA67: 5.5 | BC67: -5.5
C68: Duplimated boards and hand records | E68: 12 | W68: 12 | BA68: 12 | BC68: -12
C69: Refreshments | E69: 36 | W69: 40 | BA69: 40 | BC69: -40
C70: Sweets | BA70: 0 | BC70: 0
C71: Prizes-1st=£50, 2nd = £30, 3rd= £20 | E71: 100 | W71: 100 | BA71: 100 | BC71: -100
C72: Prizes-wine and chocolate | E72: 66.5 | W72: 66.5 | BA72: 66.5 | BC72: -66.5
BA73: 0 | BC73: 0
A74: 28/06/17 | B74: 1446 | C74: Ian Mitchell InterCounty Finals (2 teams) | F74: 360 | AK74: =F74 -> 360 | BA74: 360 | BC74: 0
A75: 06/07/17 | B75: 1447 | C75: Rhona Goldenfield July Swiss Teams prize money | F75: 500 | S75: =F75 -> 500 | BA75: 500 | BC75: 0
A76: 06/07/17 | B76: 1448 | C76: David Stevenson July Swiss Teams Director | F76: 184.5 | S76: =F76 -> 184.5 | BA76: 184.5 | BC76: 0
A77: 06/07/17 | B77: 1449 | C77: Joan Lewis July Swiss Teams Asst Director | F77: 100 | S77: =F77 -> 100 | BA77: 100 | BC77: 0
A78: 16/07/17 | B78: 1450 | C78: Irene Davies Expenses Chairman's Meeting in London | F78: 55.4 | AM78: =F78 -> 55.4 | BA78: 55.4 | BC78: 0
A79: 16/07/17 | B79: 1451 | C79: EBU insurance (Karen Durrell) | F79: 73.5 | AN79: =F79 -> 73.5 | BA79: 73.5 | BC79: 0
A80: 16/07/17 | B80: 1452 | C80: EBU Licence fee for 16/17 league (y/e creditor estimated at £450) | F80: 437.58 | AX80: =F80 -> 437.58 | BA80: 437.58 | BC80: 0
A81: 23/07/17 | B81: 1453 | C81: Altrincham Bridge Club (Duplimating and equipment hire) | F81: 128 | S81: =F81 -> 128 | BA81: 128 | BC81: 0
A82: 13/08/17 | B82: 1454 | C82: James Bollin (directing fee for match v Derbyshire) | F82: 50 | AI82: =F82 -> 50 | BA82: 50 | BC82: 0
A83: 13/08/17 | B83: 1455 | C83: Joan Lewis cards and stickers | F83: 12 | AN83: 12 | BA83: 12 | BC83: 0
A84: 13/08/17 | B84: 1456 | C84: Barbara Lewis dealing fees for match V Derbyshire | F84: 20 | AI84: =F84 -> 20 | BA84: 20 | BC84: 0
A85: 12/09/17 | B85: 1457 | C85: Griffin (A Bridge too Farr) overpaid affiliation fees returned | F85: 36 | M85: 36 | BA85: 36 | BC85: 0
A86: 24/09/17 | B86: 1458 | C86: Ali Oliver Overpaid fee reurned (Cup free) | F86: 15 | M86: 15 | BA86: 15 | BC86: =F86-BA86 -> 0
A87: 05/10/17 | B87: 1459 | C87: Catherine Draper (Tollemache expenses) | F87: 50 | AB87: =F87 -> 50 | BA87: 50 | BC87: 0
A88: 05/10/17 | B88: 1460 | C88: Andrew Woodcock (Tollemache expenses) | F88: 50 | AB88: =F88 -> 50 | BA88: 50 | BC88: 0
A89: 05/10/17 | B89: 1461 | C89: Michael Byrne(Tollemache expenses) | F89: 50 | AB89: 50 | BA89: 50 | BC89: 0
A90: 05/10/17 | B90: 1462 | C90: Michael Newman (Tollemache expenses) | F90: 50 | AB90: 50 | BA90: 50 | BC90: 0
A91: 05/10/17 | B91: 1463 | C91: John Hassett (Tollemache expenses) | F91: 50 | AB91: 50 | BA91: 50 | BC91: 0
A92: 05/10/17 | B92: 1464 | C92: Jeff Morris (Tollemache expenses) | F92: 50 | AB92: 50 | BA92: 50 | BC92: 0
A93: 05/10/17 | B93: 1465 | C93: Gareth Hyett (Tollemache expenses) | F93: 50 | AB93: 50 | BA93: 50 | BC93: 0
A94: 05/10/17 | B94: 1466 | C94: John Holland (Tollemache expenses) | F94: 50 | AB94: 50 | BA94: 50 | BC94: 0
A95: 19/10/17 | B95: 1467 | C95: Irene Davis (leaflets for Congress) | F95: 108 | T95: 108 | BA95: 108 | BC95: 0
A96: 24/10/17 | B96: 1468 | C96: MBC (hosting of Derbyshire match) | F96: 297 | AI96: =F96 -> 297 | BA96: 297 | BC96: 0
A97: 29/10/17 | B97: 1469 | C97: MBC (Hire of room and refreshments for AGM) | F97: 125 | AP97: =F97 -> 125 | BA97: 125 | BC97: 0
A98: 29/10/17 | B98: 1470 | C98: Jeff Morris (Expenses re Northern Counties Working Group 3/5/17 & 23/10/17) | F98: 90 | AV98: =F98 -> 90 | BA98: 90 | BC98: 0
A99: 29/10/17 | B99: 1471 | C99: MBC (Hire of room to select Pachobo Team) | F99: 60 | AF99: =F99 -> 60 | BA99: 60 | BC99: 0
A100: 31/10/17 | B100: 1472 | C100: Michael Byrne (C Team Seminar £250 fee less £35 received from participants) | F100: 215 | AR100: =F100 -> 215 | BA100: 215 | BC100: 0
A101: 01/11/17 | B101: 1473 | C101: St Peter's PCC Invoice 2012 Autumn Intermediate Pairs | F101: 96 | X101: =F101 -> 96 | BA101: 96 | BC101: 0
A102: 14/11/17 | B102: 1474 | C102: Barbara Lewis Autumn Intermediate Pairs | F102: 90.6 | X102: =F102 -> 90.6 | BA102: 90.6 | BC102: 0
C103: Entry fees in cash | E103: -192 | BA103: 0 | BC103: 0
C104: Director J Lewis | E104: 75 | BA104: 0 | BC104: 0
C105: Hire of equipment | E105: 20 | BA105: 0 | BC105: =F105-BA105 -> 0
C106: Caretaker | E106: 10 | BA106: 0 | BC106: 0
C107: Boards | E107: 10 | BA107: 0 | BC107: 0
C108: Refreshments | E108: =32-4 -> 28 | BA108: 0 | BC108: 0
C109: Stationery | E109: 2 | BA109: 0 | BC109: 0
C110: Postage | E110: 5.6 | BA110: 0 | BC110: 0
C111: Prizes | E111: 132 | BA111: =SUM(G111:AZ111) -> 0 | BC111: 0
BA112: 0 | BC112: 0
A113: 25/11/17 | B113: 1475 | C113: Barbara Lewis Congress Scorecards (£29.5) mailshot (£18.8) | F113: 48.3 | T113: 18.8 | AM113: 29.5 | BA113: 48.3 | BC113: 0
A114: 05/12/17 | B114: 1476 | C114: Joan Lewis £16 boxes for new boards, £49.20 new boards and cards | F114: 65.2 | AN114: 65.2 | BA114: 65.2 | BC114: 0
A115: 05/12/17 | B115: 1477 | C115: Congress V&A invoice | F115: 2900 | T115: =F115 -> 2900 | BA115: 2900 | BC115: 0
A116: 05/12/17 | B116: 1478 | C116: Michael Byrne B Team Seminar | F116: 177 | U116: 30 | AR116: 147 | BA116: 177 | BC116: 0
C117: (Fee £250 less attendees cash £153 plus Cheadle Hire £50 + Ben Franks Engraving) | BA117: 0 | BC117: 0
A118: 05/01/18 | B118: 1479 | C118: Joan Lewis TD Congress | F118: 50 | T118: 50 | BA118: 50 | BC118: 0
A119: 05/01/18 | B119: 1480 | C119: Joan Lewis duplimating boards | F119: 120 | T119: 120 | BA119: 120 | BC119: 0
A120: 05/01/18 | B120: 1481 | C120: Irene Davis Congress TD Hotel Room | F120: 83.3 | T120: 83.3 | BA120: 83.3 | BC120: 0
A121: 05/01/18 | B121: 1482 | C121: Graham Winn Congress Directing KKC | F121: 50 | T121: 50 | BA121: 50 | BC121: 0
A122: 05/01/18 | B122: 1483 | C122: Kevin Comrie Transport of equipment £120 hand records £40 | F122: 160 | T122: 160 | BA122: 160 | BC122: 0
A123: 05/01/18 | B123: 1484 | C123: Susan Trigg Congress Larkhill equipment loan £40 KKC & PPC prizes £154.75 | F123: 194.75 | T123: 194.75 | BA123: 194.75 | BC123: 0
A124: 05/01/18 | B124: 1486 | C124: Barbara Eastabrook trophy engraving | F124: 145.5 | T124: 145.5 | BA124: 145.5 | BC124: 0
A125: 05/01/18 | B125: 1485 | C125: Barbara Lewis loan of Cheadle equipment | F125: 50 | T125: 50 | BA125: 50 | BC125: 0
A126: 08/01/18 | B126: 1487 | C126: Barbara Lewis Congress prizes | F126: 1260 | T126: 1260 | BA126: 1260 | BC126: 0
A127: 08/01/18 | B127: 1488 | C127: Robert Dixon TD fees and expenses | F127: 294.6 | T127: 294.6 | BA127: 294.6 | BC127: 0
A128: 08/01/18 | B128: 1489 | C128: Neil Morley Congress fees and expenses | F128: 378.86 | T128: 378.86 | BA128: 378.86 | BC128: 0
A129: 08/01/18 | B129: 1490 | C129: Kevin Comrie extra transport expenses | F129: 20 | T129: 20 | BA129: 20 | BC129: 0
A130: 08/01/18 | B130: 1491 | C130: Joan Lewis £16 boxes (general) £50 Congress PPC TD fee | F130: 66 | T130: 50 | AN130: 16 | BA130: 66 | BC130: 0
A131: 09/01/18 | B131: 1492 | C131: St Perters PCC Gazette £144 Summer Intermediate pairs £96 | F131: 240 | P131: 144 | AW131: 96 | BA131: 240 | BC131: 0
A132: 09/01/18 | B132: 1493 | C132: Susan Triggs refund of £32 paid into Congress receipts in error | F132: 32 | T132: 32 | BA132: 32 | BC132: 0
A133: 16/01/18 | B133: 1494 | C133: St Peter's PCC Green point pairs 3/3/18 £184 Green point teams 22/7/18 £184 | F133: 368 | R133: 184 | AW133: 184 | BA133: 368 | BC133: 0
A134: 06/02/18 | B134: 1495 | C134: Barbara Lewis Gazette cup expenses | F134: 176.1 | P134: =F134 -> 176.1 | BA134: 176.1 | BC134: 0
A135: 06/02/18 | B135: 1496 | C135: Ann Thornton Gazette Cup Expenses | F135: 235 | P135: =F135 -> 235 | BA135: 235 | BC135: 0
A136: 06/02/18 | B136: 1497 | C136: EBU Green Points July Summer Pairs | F136: 399.18 | S136: 399.18 | BA136: 399.18 | BC136: 0
A137: 06/02/18 | B137: 1498 | C137: EBU Tollemache Cup 17/18 | F137: 430 | AB137: =F137 -> 430 | BA137: 430 | BC137: 0
A138: 15/02/18 | B138: 1499 | C138: B Goldenfield Tollemache expenses | F138: 593 | AB138: =F138 -> 593 | BA138: 593 | BC138: 0
A139: 15/02/18 | B139: 1500 | C139: R Goldenfield Green point prizes | F139: 500 | R139: 500 | BA139: 500 | BC139: 0
A140: 15/02/18 | B140: 1501 | C140: Rob Dixon Directing Alty Green point | F140: 150 | R140: 150 | BA140: 150 | BC140: 0
A141: 15/02/18 | B141: 1502 | C141: Altincham Bridge club Green point pairs dulicating and equipment | F141: 130 | R141: 130 | BA141: 130 | BC141: 0
A142: 15/02/18 | B142: 1503 | C142: Joan Lewis Green Point event Asst Directing and caretaker tip | F142: 100 | R142: 100 | BA142: 100 | BC142: 0
A143: 15/02/18 | B143: 1504 | C143: Joan Lewis Extra directing fee Gazette Cup | F143: 30 | P143: 30 | BA143: 30 | BC143: 0
A144: 26/02/18 | B144: 1505 | C144: Barbara Lewis Cantor Cup Net costs | F144: 292 | Y144: 292 | BA144: 292 | BC144: 0
C145: Entry fees in cash | E145: -176 | BA145: 0 | BC145: 0
C146: Hire of facilities | E146: 120 | BA146: 0 | BC146: 0
C147: Director - Joan Lewis | E147: 75 | BA147: 0 | BC147: 0
C148: Duplimated boards | E148: 10 | BA148: 0 | BC148: =F148-BA148 -> 0
C149: Refreshments | E149: =57+10 -> 67 | BA149: 0 | BC149: 0
C150: Prizes | E150: =100+40+20+36 -> 196 | BA150: 0 | BC150: 0
BA151: 0 | BC151: 0
A152: 05/03/18 | B152: 1506 | C152: Rodney Lighton web expenses | F152: 104.24 | AD152: =F152 -> 104.24 | BA152: 104.24 | BC152: 0
A153: 05/03/18 | B153: 1507 | C153: Congress 2019 deposit | F153: 500 | AW153: 500 | BA153: 500 | BC153: 0
A154: 05/03/18 | B154: 1508 | C154: Northern Bridge League (Stuart Davis) | F154: 300 | AW154: 300 | BA154: 300 | BC154: 0
A155: 20/03/18 | B155: 1509 | C155: EBU (inv 51300, Inv 51586) | F155: 45.36 | P155: 28.8 | U155: 16.56 | BA155: 45.36 | BC155: 0
A156: 20/03/18 | B156: 1510 | C156: EBU-The Bridge Warehouse | F156: 529.2 | AN156: 529.2 | BA156: 529.2 | BC156: 0
A157: 20/03/18 | B157: 1511 | C157: EBU Manchester Congress £274.56, Insurance £74.70 | F157: 349.26 | T157: 274.56 | AW157: 74.7 | BA157: 349.26 | BC157: 0
A158: 26/03/18 | B158: 1512 | C158: Skipton Building Society Deposit account | F158: 4000 | AY158: =F158 -> 4000 | BA158: 4000 | BC158: 0
A160: Total Expenditure | D160: =SUM(D8:D92) -> 0 | F160: =SUM(F8:F158) -> 22363.83 | G160: =SUM(G8:G158) -> 0 | H160: 0 | I160: 0 | J160: 0 | K160: 0 | L160: 0 | M160: 51 | N160: 0 | O160: 0 | P160: 613.9 | Q160: 0 | R160: 1064 | S160: 1495.68 | T160: 6690.37 | U160: 46.56 | V160: 373 | W160: 135 | X160: 186.6 | Y160: 292 | Z160: 0 | AA160: 0 | AB160: 1423 | AC160: 416 | AD160: 104.24 | AE160: 0 | AF160: 279 | AG160: 268 | AH160: 255 | AI160: 367 | AJ160: 240 | AK160: 360 | AL160: 0 | AM160: 84.9 | AN160: 695.9 | AO160: 0 | AP160: 320.42 | AQ160: 141.75 | AR160: 362 | AS160: 0 | AT160: 30 | AU160: 0 | AV160: 90 | AW160: 1154.7 | AX160: 2997.81 | AY160: 4000 | AZ160: 0 | BA160: 22363.83 | BB160: 0 | BC160: 0
A162: Cash | F162: =D160 -> 0
BA163: =BA160+BA162 -> 22363.83
A164: Total Expenditure | F164: =F160+F162 -> 22363.83 | BA164: =F160-BA163 -> 0
A167: Cheques not presented | C167: See above(all items in black, not red in Bank column) | F167: =F157+F156+F155+F143+F142+F85 -> 1089.82
K169: 489.6

Sheet Balance Sheet
A1: Manchester County Bridge Association
A2: Balance Sheet as at 31st March 2018
B4: 2017-2018 | C4: 2016-2017 | D4: 2015-2016 | E4: 2014 - 2015 | F4: 2013 - 2014 | H4: 2012 - 2013 | J4: 2011 -2012 | L4: 2010 - 2011 | N4: 2009-2010 | P4: 2008-2009
A6: Trophies | B6: 834 | C6: 834 | D6: 834 | E6: 834 | F6: 834 | H6: 834 | J6: 834 | L6: 834 | N6: 834 | P6: 834
A7: P.A.System | B7: 0 | C7: 0 | D7: 0 | E7: 0 | F7: 0 | H7: 67 | J7: 167 | L7: 267 | N7: 267 | P7: 267
A9: Fixed Assets | B9: =SUM(B6:B8) -> 834 | C9: =SUM(C6:C8) -> 834 | D9: =D6+D7 -> 834 | E9: =E6+E7 -> 834 | F9: =SUM(F6:F8) -> 834 | H9: 901 | J9: =SUM(J6:J7) -> 1001 | L9: =SUM(L6:L7) -> 1101 | N9: =SUM(N6:N8) -> 1101 | P9: =SUM(P6:P8) -> 1101
A11: Bank Reserve Account - Skipton BS | B11: ='Reserve Accounts'!C9 -> 10931.95 | C11: 6873.98 | D11: ='Reserve Accounts'!E9 -> 9793.7 | E11: 11718.7 | F11: 11644.18 | H11: 11560.36 | J11: 11586.88 | L11: 11454.29 | N11: 11239.54 | P11: 11000
A12: Current Account | B12: =Income!F145 -> 5612.14 | C12: 8551.72 | D12: 3760.23 | E12: 3826.78 | F12: 5774.25 | H12: 8402.66 | J12: 6779.46 | L12: 4030.93 | N12: 4246.38 | P12: 2717.03
A13: Cash in Hand | B13: 0 | C13: 0 | D13: 14 | E13: 0 | F13: 0 | H13: 0 | J13: 0 | L13: 0 | N13: =[1]Income!D137 -> 0 | P13: 200
A14: Sundry Debtors - note 20 | B14: ='Notes 2017-18'!E283 -> 1449.31 | C14: 2683.18 | D14: 1055 | E14: 116.2 | F14: 0 | H14: 0 | J14: 0 | L14: =6+81 -> 87 | N14: 500 | P14: 100
A15: Sundry Creditors - note 21 | B15: =-'Notes 2017-18'!E310 -> -2916.32 | C15: -3060.23 | D15: -3055.25 | E15: -2853.1 | F15: -2886.06 | H15: -2707.63 | J15: -2181.24 | L15: =-([1]Income!F138) -> 0 | N15: -1301.62 | P15: -441.5
A17: Total Current Assets | B17: =SUM(B11:B16) -> 15077.08 | C17: =SUM(C11:C16) -> 15048.65 | D17: =SUM(D11:D16) -> 11567.68 | E17: =SUM(E11:E16) -> 12808.58 | F17: =SUM(F11:F16) -> 14532.37 | H17: =SUM(H11:H16) -> 17255.39 | J17: =SUM(J11:J16) -> 16185.1 | L17: =SUM(L11:L15) -> 15572.22 | N17: =SUM(N11:N16) -> 14684.3 | P17: =SUM(P11:P16) -> 13575.53
A19: Net Assets | B19: =B9+B17 -> 15911.08 | C19: =C9+C17 -> 15882.65 | D19: =D9+D17 -> 12401.68 | E19: =E9+E17 -> 13642.58 | F19: =F9+F17 -> 15366.37 | H19: =H9+H17 -> 18156.39 | J19: =J9+J17 -> 17186.1 | L19: =L9+L17 -> 16673.22 | N19: =N9+N17 -> 15785.3 | P19: =P9+P17 -> 14676.53
A21: Reserves Brought Forward | B21: =C24 -> 15882.65 | C21: =D24 -> 12401.68 | D21: =E24 -> 13642.58 | E21: =F24 -> 15366.37 | F21: =H24 -> 18156.39 | G21: 0 | H21: 17186.1 | I21: 0 | J21: 14942.67 | K21: 0 | L21: 15785.3 | M21: 0 | N21: 14676.53 | P21: 13331.5
A22: Surplus/Deficit for the Year | B22: ='Income & Expenditure 2017-2018'!F48 -> 28.43 | C22: 3480.97 | D22: -1240.9 | E22: =E19-E21 -> -1723.79 | F22: =F19-F21 -> -2790.02 | H22: =H19-H21 -> 970.29 | I22: =I19-I21 -> 0 | J22: 2243.43 | K22: =K19-K21 -> 0 | L22: -842.63 | M22: =M19-M21 -> 0 | N22: =N19-N21 -> 1108.77 | O22: =O19-O21 -> 0 | P22: =P19-P21 -> 1345.03
A24: Reserves Carried Forward | B24: =SUM(B21:B23) -> 15911.08 | C24: =SUM(C21:C23) -> 15882.65 | D24: =SUM(D21:D23) -> 12401.68 | E24: =SUM(E21:E23) -> 13642.58 | F24: =SUM(F21:F23) -> 15366.37 | H24: =SUM(H21:H23) -> 18156.39 | J24: =SUM(J21:J23) -> 17186.1 | L24: =L21+L22 -> 14942.67 | N24: =N21+N22 -> 15785.3 | P24: =P21+P22 -> 14676.53

Sheet Bal sheet rec (hidden)
A3: I&E reconciliation to cash book
A5: Expenditure | D5: =' Expenses'!F160 -> 22363.83 | E5: includes £51 | G5: Balance sheet
A6: less: up cheques (not current year) | D6: -2560.23
A7: add: 2017 prepay | D7: 2174 | G7: Bank | J7: =Income!F145 -> 5612.14
A8: Less: 2018 debtors and prepay | D8: =-'Notes 2017-18'!E283 -> -1449.31 | G8: less: up cheques 2018 | J8: =-Income!F141 -> -1089.82
A9: Less 2017 cr paid | D9: -437.58
A10: Over provision 2017 (450-437.58) | D10: -12.42 | K10: =SUM(J7:J9) -> 4522.32
A11: release 2017 Higson P2P prov | D11: -20
A12: Bank transfer | D12: -4000
A13: League 17/18 P2P accrual | D13: 400 | G13: Skipton | K13: ='Reserve Accounts'!C9 -> 10931.95
A14: GP Pairs Licence accrual | D14: ='Notes 2017-18'!E300 -> 364.8
A15: Higson Final accruals | D15: =697+40 -> 737
A16: Jeff Morris Northern Counties travel | D16: ='Notes 2017-18'!E307 -> 112.5
A17: POY | D17: 100
A18: Treasurer stamps accrual | D18: 18.2
D19: =SUM(D5:D18) -> 17790.79 | G19: Tophies FA | K19: 834
A20: Income | D20: =Income!F129 -> 18334.43
A21: Less: last year dr paid | D21: =-328.08-181.1 -> -509.18 | G21: Debtors | K21: =D36 -> 1449.31
A22: Skipton interest | D22: ='Reserve Accounts'!C7 -> 57.97
D24: =SUM(D20:D23) -> 17883.22 | G24: Creditors | K24: =-D49 -> -1762.5 | N24: Income includes all 115 overpayment
A25: profit | D25: =D24-D19 -> 92.43 | G25: overpayment cr | K25: -64 | N25: expenditure includes £51 repaid
A26: Effect of League over payments | D26: =115-51 -> 64 | E26: 115-51 already paid back | G26: Net assets | K26: =SUM(K10:K25) -> 15911.08
D27: =D25-D26 -> 28.43
A29: Debtors | G29: Opening NA | K29: 15882.65
A30: opening drs | D30: 2683.18
A31: released to P&L | D31: -2174 | G31: Profit for year | K31: =D27 -> 28.43
A32: cash received | D32: -328.08
A33: 2016/17 cantor cup rec'd | D33: -181.1 | G33: Closing NA | K33: =SUM(K29:K31) -> 15911.08
A34: new debtors and prepayments | D34: ='Notes 2017-18'!E283 -> 1449.31
A36: closing drs | D36: =SUM(D30:D34) -> 1449.31 | G36: Difference | K36: =K33-K26 -> 0
A39: Creditors
A40: opening creditors | D40: 500
A41: EBU league fee accrual | D41: -450
A42: release Higson p2p 2017 provn | D42: -20
A43: 17/18 league P2P accrual | D43: 400
A44: Higson final accruals | D44: =D15 -> 737
A45: Jeff Morris Northern Counties travel | D45: 112.5
A46: GP Pairs Licence accrual | D46: =D14 -> 364.8
A47: POY Accrual | D47: 100
A48: Treasurer stamps | D48: 18.2
D49: =SUM(D40:D48) -> 1762.5
A50: league overpay | D50: =-K25 -> 64
A51: up cheques | D51: =-J8 -> 1089.82
D52: =SUM(D49:D51) -> 2916.32

Sheet Cheques received_banking list
A3: 20/07/17 | B3: Ashton Aces | E3: 50
A4: 2017-10-07 | B4: Tempo | E4: 11
A5: 2017-10-07 | B5: Tempo | E5: 65
A6: 13/07/17 | B6: Smash The System | E6: 55
A7: 2017-12-07 | B7: Sedgeley | E7: 62
A8: 2017-12-07 | B8: Double Trouble | E8: 35
A9: 14/07/17 | B9: DASH | E9: 66
A10: 17/07/17 | B10: Altrincham A | E10: 55
A11: 22/07/17 | B11: Tricksters | E11: 50
A12: 2017-03-08 | B12: Pack Choice | E12: 35
A13: 2017-02-08 | B13: Proteus | E13: 50
A14: 25/07/17 | B14: Grasshoppers | E14: 40
A15: 2017-04-08 | B15: Curry Eaters | E15: 73
C17: Paid in on 07/08/17 | F17: =SUM(E3:E15) -> 647
A19: 25/09/17 | B19: Manchester S | E19: 45.5
A20: 14/08/17 | B20: Monton Misfits | E20: 60
A21: 13/09/17 | B21: Curry Eaters | E21: 11
A22: 13/08/17 | B22: Rueful Rabbits | E22: 35
C24: Paid in on 02/10/17 | F24: =SUM(E19:E22) -> 151.5

Sheet Opening Debtors & Creditors
A1: Manchester County Bridge Association
B6: Debtors and Prepayments:
B7: Prepaid Room Bookings for 2017-18:
B8: GP Teams -July 2017 | E8: 184
B9: Summer Int. Pairs - June 2017 | E9: 92
B10: Manchester Congress Deposit | E10: 500
B11: Prepayments-Room Bookings | E11: =SUM(E8:E10) -> 776
B12: Pre-paid Tournament Fees for 2017-18:
B13: Presidents cup | E13: 255
B14: EBU-Pachabo entry | E14: 219
B15: EBU-Garden Cities | E15: 268
B16: EBU-Corwen Trophy | E16: 416
B17: Stuart Davies-Northern Bridge League | E17: 240
B18: Prepayments-Tournament Bookings | E18: =SUM(E13:E17) -> 1398
B19: Total Prepayments: | E19: =E11+E18 -> 2174
B20: Debtors:
B21: EBU P2P Income for March 2017 | E21: 318.08
B22: Cup-extra players paid for in early April,17 | E22: 10
B23: Cantor Cup re-imbursement due from Cantor Reserve A/c | E23: 181.1
B24: Debtors Total | E24: =SUM(E21:E23) -> 509.18
B26: Total Debtors and Prepayments | E26: =E11+E18+E24 -> 2683.18
B28: Creditors
B29: Unpresented Cheques | E29: 2560.23
B30: Estimated EBU license fee for League 2016/17 | E30: 450
B31: Engraving (provision)-Higson Cup | E31: 10
B32: Estimated P2P charge for Cup final (Provision) | E32: 20
B33: Trophies engraved for POY's (Provision) | E33: 20
E35: =SUM(E29:E33) -> 3060.23
B36: Unpresented cheques
A37: 1408 | B37: J.Lewis-Gazette-Directing | E37: 80
A38: 1419 | B38: EBU-Pachabo entry | E38: 219
A39: 1420 | B39: EBU-Garden Cities | E39: 268
A40: 1421 | B40: EBU-Corwen Trophy | E40: 416
A41: 1423 | B41: J.Lewis - Equipment (Boards £33.37/cards in Boxes £23.86) | E41: 57.23
A42: 1424 | B42: K.Nelson - Cup Prizes | E42: 250
A43: 1426 | B43: MBC-Cup & Plate Finals: Room Hire | E43: 228
A44: 1429 | B44: J.Lewis - Higson Cup/Plate Finals: | E44: 95
A45: 1431 | B45: J.Smith - Cup/Plate Finals - Directing | E45: 35
A46: 1432 | B46: J.Holland - Joint POY (player of Year 2016/17) | E46: 25
A47: 1433 | B47: A.Mould - Joint POY (player of Year 2016/17) | E47: 25
A48: 1434 | B48: A.Wiseberg -Intermediate POY (player of Year 2016/17) | E48: 50
A49: 1435 | B49: EBU-Inv 12579-Congress 2017 Masterpoints | E49: 303.96
A50: 1436 | B50: EBU-Inv 12748-Gazette Cup masterpoints | E50: 27
A51: 1437 | B51: EBU-Inv. 1437 - G.P.Swiss Pairs on 04/03/2017 | E51: 373.86
A52: 1438 | B52: cancelled
A53: 1439 | B53: J.Morris-Expenses-Northern Counties Working Group-18/01/2017 | E53: 60
A54: 1444 | B54: H.Tattersall-Postage/Stationery etc | E54: 47.18
E55: =SUM(E37:E54) -> 2560.23

Sheet Income & Expenditure 2017-2018
A1: Manchester County Bridge Association
A2: Income & Expenditure Account to 31st March 2018 | J2: Improvement
F3: This Year | H3: Last Year | J3: in Income
A4: Income (net) - see notes for detail | B4: Note | F4: 2017-2018 | H4: 2016-2017 | J4: £
A6: EBU P2P Clubs | B6: 1 | F6: ='Notes 2017-18'!E9 -> 2481.36 | H6: 2872.66 | J6: =F6-H6 -> -391.3
A7: Direct Members | F7: =Income!G129 -> 325 | H7: 235 | J7: =F7-H7 -> 90
A8: Affiliation Fees | B8: 2c | F8: ='Notes 2017-18'!E25 -> 234 | H8: 252 | J8: -18
A9: Manchester League | B9: 2a | F9: ='Notes 2017-18'!E19 -> 1964 | H9: 1937.86 | J9: 26.14
A10: Higson Memorial Cup & Plate | B10: 3 | F10: ='Notes 2017-18'!E43 -> -208.08 | H10: -138 | J10: -70.08
A11: Extra Players Fees in League & Cup | B11: 2b | F11: ='Notes 2017-18'!E23 -> 340 | H11: 370 | J11: -30
A12: Gazette Trophy | B12: 4 | F12: ='Notes 2017-18'!E58 -> 21.1 | H12: -10.11 | J12: 31.21
A13: Merville Goldstone Cup (Pachabo Qualifier) | F13: =Income!R137 -> 0 | H13: -80 | J13: 80
A14: Green Point Pairs | B14: 5 | F14: ='Notes 2017-18'!E75 -> 416.2 | H14: 517.14 | J14: -100.94
A15: Green Point Teams | B15: 6 | F15: ='Notes 2017-18'!E94 -> 460.32 | H15: 560.12 | J15: -99.8
A16: Manchester Congress | B16: 7 | F16: ='Notes 2017-18'!E111 -> -79.37 | H16: 275.29 | J16: -354.66
A17: Ben Franks | B17: 8 | F17: ='Notes 2017-18'!E128 -> -23.56 | H17: 94.5 | J17: -118.06
A18: Summer Intermediate Pairs | B18: 9 | F18: ='Notes 2017-18'!E143 -> 41 | H18: 64.22 | J18: -23.22
A19: Autumn Intermediate Pairs | B19: 10 | F19: ='Notes 2017-18'!E158 -> -10.6 | H19: 140.1 | J19: -150.7
A20: Intermediate Swiss pairs | B20: 11 | F20: -34 | H20: 0 | J20: -34
A21: Cantor Cup | B21: 12 | F21: ='Notes 2017-18'!E187 -> -172 | H21: -181.1 | J21: 9.1
A22: Contribution from Cantor Reserve Account | B22: 12 | F22: ='Notes 2017-18'!E188 -> 172 | H22: 181.1 | J22: -9.1
A23: Interest Skipton Building Society | F23: ='Reserve Accounts'!C7 -> 57.97 | H23: 80.28 | J23: -22.31
A24: Prior Year Adjustments | B24: 19 | F24: ='Notes 2017-18'!E260 -> -40 | H24: 260 | J24: -300
A25: Total net Income | F25: =SUM(F6:F24) -> 5945.34 | H25: =SUM(H6:H24) -> 7431.06 | J25: =SUM(J6:J24) -> -1485.72
A27: Expenses | J27: Improvement
J28: in Costs:
A29: Northern Bridge League (NBL) | F29: =' Expenses'!AJ160 -> 240 | H29: 0 | J29: =H29-F29 -> -240
A30: All Counties Super Final | F30: =' Expenses'!AK160 -> 360 | H30: 180 | J30: =H30-F30 -> -180
A31: Derbyshire Friendly | F31: =' Expenses'!AI160 -> 367 | H31: 0 | J31: -367
A32: Representative Competitions/Matches | B32: 13 | F32: ='Notes 2017-18'!E200 -> 2641 | H32: 2138.7 | J32: -502.3
A33: Northern Counties Working Group | F33: =' Expenses'!AV160+'Notes 2017-18'!E307 -> 202.5 | H33: 60 | J33: -142.5
A34: Youth Budget | B34: 14 | F34: =' Expenses'!AQ160 -> 141.75 | H34: 0 | J34: -141.75
A35: Handbook Expenses | B35: 18 | F35: =-Income!X129 -> 249 | H35: 509.56 | J35: 260.56
A36: EBU Delegate Expenses | F36: =' Expenses'!AL160 -> 0 | H36: 119.1 | J36: 119.1
A37: Trophy Engraving/Trophy Repairs | F37: =' Expenses'!AT160 -> 30 | H37: 0 | J37: -30
A38: Printing/Postage/Stationery/Telephone/Travel | F38: =' Expenses'!AM160+'Notes 2017-18'!E309 -> 103.1 | H38: 125.88 | J38: 22.78
A39: Retirement Gifts/Presentations/Receptions | B39: 15 | F39: ='Notes 2017-18'!E212 -> 100 | H39: 181 | J39: 81
A40: Bridge stationery & equipment & Insurance | B40: 17 | F40: =' Expenses'!AN160 -> 695.9 | H40: 279.43 | J40: -416.47
A41: Seminars | B41: 16 | F41: =-'Notes 2017-18'!E223-'Notes 2017-18'!E232 -> 362 | H41: 210 | J41: -152
A42: Web Site Costs | F42: =' Expenses'!AD160 -> 104.24 | H42: 88.62 | J42: -15.62
A43: AGM Expenses | F43: =' Expenses'!AP160 -> 320.42 | H43: 57.8 | J43: -262.62
A44: Depreciation | F44: 0 | H44: 0 | J44: 0
A46: Total Expenses | F46: =SUM(F29:F45) -> 5916.91 | H46: =SUM(H29:H45) -> 3950.09 | J46: -1966.82
A48: Surplus of Income over Expenditure (Profit) | F48: =F25-F46 -> 28.43 | H48: =H25-H46 -> 3480.97 | J48: =F48-H48 -> -3452.54 | K48: =SUM(K26:K47) -> 0
A50: Current Assets Balance from last year | F50: ='Balance Sheet'!C24 -> 15882.65
A52: Total Current Assets | F52: =SUM(F48:F51) -> 15911.08

Sheet Notes 2017-18
A1: Manchester County Bridge Association
A2: Notes to the Accounts for the year ended 31st March 2018
E3: 2017/18
A4: Note
A6: 1 | B6: EBU P2P Income
B7: Received during year | E7: =Income!H137 -> 2192.75
B8: Debtor-Mar income | E8: 288.61
C9: Total | E9: =SUM(E7:E8) -> 2481.36
A11: 2a) | B11: Manchester League 2016 - 2017
B12: Income:
B13: 66 Teams @ £35 | E13: =Income!I129+Income!L137 -> 2310
B14: Over-provision in 2015-16 for P2P re League | E14: 54
C15: Total | E15: =SUM(E13:E14) -> 2364
B16: Expenses:
B17: Estimated P2P charge from EBU - Note 21 | E17: 400
B19: Profit | E19: =E15-E17 -> 1964
A21: 2b) | B21: Extra Players,
B22: 68 @ £5 each | E22: 340
C23: Total | E23: =SUM(E21:E22) -> 340
A25: 2c) | B25: Affiliation Fees | E25: =Income!K137 -> 234
A27: 3 | B27: Higson Memorial Cup & Plate
B28: Income:
B29: Gross Receipts (36 teams @ £15, plus one reduced £10.50) | E29: =Income!J137+Income!N129 -> 550.5
C30: Total | E30: =SUM(E29:E29) -> 550.5
B31: Expenses
B33: Prizes | E33: 310
B34: Director's Fees | E34: 160
B35: Room Hire | E35: 192
B36: Refunds | E36: 0
B37: Duplimating & Copying Hands | E37: 35
B38: Engraving (provision) | E38: 0
B39: release 2017 provn | E39: 21.58
B40: Estimated P2P charge for final (Provision) | E40: 40
C41: Total | E41: =SUM(E33:E40) -> 758.58
B43: Loss | E43: =E30-E41 -> -208.08
A45: 4 | B45: Gazette Trophy - Feb.
B46: Income: | E46: =Income!Q129+165 -> 800
B48: Expenses:
B49: Hire of Hall | E49: =' Expenses'!P131 -> 144
B50: Tournament Director | E50: 100
B51: Hire of Equipment/duplimated boards - Altrincham Bridge Club | E51: 75
B52: Refreshments for Players | E52: 310.1
B53: Caretaker gratuity | E53: 20
B54: EBU Masterpoints | E54: 28.8
B55: Prizes | E55: 101
C56: Total | E56: =SUM(E49:E55) -> 778.9
B58: Loss | E58: =E46-E56 -> 21.1
A60: 5 | B60: Manchester Green Points Pairs - March
B61: Income: | E61: =Income!S129+20+55 -> 1920
B63: Expenses:
B64: Hire of Hall | E64: =' Expenses'!R133 -> 184
B65: Director | E65: =' Expenses'!R140+70 -> 220
B66: Printing | E66: 20 | F66: *
B67: Hire of Equipment/Boards/Hand Records | E67: =' Expenses'!R141 -> 130 | G67: * expenses paid in cash out of income on the day
B68: Hand records | E68: 20 | G68: ** accrued
B69: EBU - One Day Event | E69: 364.8 | F69: **
B70: Refreshments for Players | E70: 55 | F70: *
B71: Prizes | E71: =' Expenses'!R139 -> 500
B72: Gratuity-Caretaker | E72: 10
C73: Total | E73: =SUM(E64:E72) -> 1503.8
B75: Profit | E75: =E61-E73 -> 416.2
A77: 6 | B77: Manchester Green Points Teams - July
B78: Income: | E78: =Income!T129+124 -> 2080
B80: Expenses:
B81: Director - D Stevenson | E81: =' Expenses'!S76 -> 184.5
B82: Director - J Lewis | E82: =' Expenses'!S77-E91-E89 -> 70
B83: Altrincham Bridge Club-equipment & boards | E83: =' Expenses'!S81 -> 128
B84: Prizes - Cash | E84: 500
B85: Prizes - Wine | E85: 59 | F85: * | G85: * expenses paid in cash out of income on the day
B86: Hire of Hall | E86: =' Expenses'!S11 -> 184
B87: Refreshments | E87: 45 | F87: *
B88: EBU Licence Fee | E88: =' Expenses'!S136 -> 399.18
B89: Printing hand records | E89: 20
B90: Flyers and postage | E90: 20 | F90: *
B91: Gratuity - Caretaker | E91: 10
B92: Total Expenses | C92: Total | E92: =SUM(E81:E91) -> 1619.68
B94: Profit | E94: =E78-E92 -> 460.32
A96: 7 | B96: Manchester Congress
B98: Income:
B99: Entry Fees | E99: =Income!U129-' Expenses'!T132 -> 6579
C100: Total | E100: =SUM(E99:E99) -> 6579
B101: Expenses:
B102: Hotel fee | E102: =' Expenses'!T115+' Expenses'!T13 -> 3400
B103: Printing / Postage / Stationery | E103: =' Expenses'!T95+' Expenses'!T113 -> 126.8
B104: Engraving | E104: =' Expenses'!T124 -> 145.5
B105: Directing | E105: =' Expenses'!T118+' Expenses'!T120+' Expenses'!T121+' Expenses'!T127+' Expenses'!T128+' Expenses'!T130 -> 906.76
B106: Hire of Equipment / Boards / Hand records | E106: =' Expenses'!T119+' Expenses'!T122+' Expenses'!T123+' Expenses'!T129+' Expenses'!T125-154.75 -> 390
B107: Prizes | E107: =' Expenses'!T126+154.75 -> 1414.75
B108: EBU License Fee | E108: 274.56
C109: Total | E109: =SUM(E102:E108) -> 6658.37
B111: Profit | E111: =E100-E109 -> -79.37
A113: 8 | B113: Ben Franks Trophy - Dec.
B114: Income: | E114: 522
B116: Expenses:
B117: Room Hire | E117: 138
B118: Boards and Hand Records | E118: 20
B119: Prize Money | E119: 220
B120: Tournament Director | E120: 80
B121: Refreshments | E121: 27.92
B122: Publicity & Postage | E122: 0
B123: EBU Masterpoints | E123: 16.56
B124: Engraving | E124: 30
B125: additional cost | E125: 13.08
C126: Total | E126: =SUM(E117:E125) -> 545.56
B128: Profit | E128: =E114-E126 -> -23.56
A130: 9 | B130: Summer Intermediate Pairs - June
B131: Income: | E131: =Income!Y129-' Expenses'!E62 -> 444
B133: Expenses:
B134: Hire of Hall | E134: =' Expenses'!W12 -> 92
B135: Directing | E135: =' Expenses'!W63 -> 45
B136: Hire of Equipment / Duplimated Boards / Hand Records | E136: =' Expenses'!W64+' Expenses'!W68 -> 32
B137: Refreshments | E137: =' Expenses'!W69 -> 40
B138: Printing / Postage / Stationery | E138: =' Expenses'!W66+' Expenses'!W67 -> 7.5
B139: Prizes | E139: =' Expenses'!W71+' Expenses'!W72 -> 166.5
B140: Gratuities | E140: =' Expenses'!W65 -> 20
C141: Total | E141: =SUM(E134:E140) -> 403
B143: Profit | E143: =E131-E141 -> 41
A145: 10 | B145: Autumn Intermediate Pairs
B146: Income: | E146: =Income!Z129-' Expenses'!E103 -> 368
B148: Expenses:
B149: Hire of Hall | E149: =' Expenses'!X101 -> 96
B150: Directing | E150: =' Expenses'!E104 -> 75
B151: Hire of Equipment / Duplimated Boards / Hand Records | E151: =' Expenses'!E105+' Expenses'!E107 -> 30
B152: Refreshments | E152: =' Expenses'!E108 -> 28
B153: Printing / Postage / Stationery | E153: =' Expenses'!E109+' Expenses'!E110 -> 7.6
B154: Prizes | E154: =' Expenses'!E111 -> 132
B155: Gratuities | E155: =' Expenses'!E106 -> 10
C156: Total | E156: =SUM(E149:E155) -> 378.6
B158: Profit | E158: =E146-E156 -> -10.6
A160: 11 | B160: Intermediate Swiss Pairs (S Triggs)
B161: Income: | E161: =Income!E116 -> 496
B163: Expenses:
B164: Hire of Hall & Refreshments | E164: =' Expenses'!V33 -> 288
B165: Directing | E165: =' Expenses'!V54-5 -> 45 | F165: Directors £50 cheque included £5 hand records
B166: Hand records | E166: 5
B167: Hire of Equipment / Duplimated Boards | E167: =' Expenses'!V55 -> 35
B168: Prizes | E168: =-Income!E117 -> 157
C169: Total | E169: =SUM(E164:E168) -> 530
B171: Profit | E171: =E161-E169 -> -34
A173: 12 | B173: Cantor Cup - Feb
B174: A gift of £6k has been received from the Cantor family-to be kept in separate reserve account.
B176: Income:
B177: Entrance Fees | E177: =Income!AA121-' Expenses'!E145 -> 296
B179: Expenses:
B180: Room Hire - MBC | E180: =' Expenses'!E146 -> 120
B181: Director - Joan Lewis | E181: =' Expenses'!E147 -> 75
B182: Hire of Equipment / Duplimated Boards / Hand Records | E182: =' Expenses'!E148 -> 10
B183: Refreshments | E183: =' Expenses'!E149 -> 67
B184: Prizes | E184: =' Expenses'!E150 -> 196
C185: Total | E185: =SUM(E180:E184) -> 468
B187: Loss | E187: =E177-E185 -> -172
B188: Contribution received from Cantor Cup Reserve Account | E188: 172
B189: Cost to MCBA | E189: =SUM(E187:E188) -> 0
A191: 13 | B191: Expenses for Representative Competitions
B192: Pachabo Cup | E192: =' Expenses'!AF160 -> 279
B193: Garden Cities | E193: =' Expenses'!AG160 -> 268
B194: Corwen - Entry | E194: =' Expenses'!AC160 -> 416
B195: President's Cup - Entry | E195: =' Expenses'!AH160 -> 255
B196: Tollemache Cup - Entry | E196: =' Expenses'!AB137 -> 430
B197: Expenses for Tollemache | E197: =' Expenses'!AB138+' Expenses'!AB87+' Expenses'!AB88+' Expenses'!AB89+' Expenses'!AB90+' Expenses'!AB91+' Expenses'!AB92+' Expenses'!AB93+' Expenses'!AB94 -> 993
B198: Camrose | E198: =' Expenses'!AU160 -> 0
B200: Total Cost | E200: =SUM(E192:E199) -> 2641
A203: 14 | B203: Youth Budget
B204: Youth Expenditure | E204: =' Expenses'!AQ160 -> 141.75
B206: Total Cost | E206: =SUM(E204:E204) -> 141.75
A208: 15 | B208: Retirement Gifts/Presentations/Receptions
B209: Joint Players of the Year 2 @ £25 | E209: 50
B210: Intermediate Player of the Year | E210: 50
B212: Total Cost | E212: =SUM(E209:E210) -> 100
A214: 16 | B214: Seminars
B215: B Team M Byrne Seminar
B216: Income: | C216: Total | E216: 153
B218: Expenses:
B219: Teaching | E219: 250
B220: Room Hire | E220: 50
C221: Total: | E221: =SUM(E219:E220) -> 300
B223: Total Cost | E223: =E216-E221 -> -147
B225: C Team M Byrne Seminar
B226: Income: | C226: Total | E226: 35
B228: Expenses:
B229: Teaching | E229: 250
C230: Total: | E230: =SUM(E229:E229) -> 250
B232: Total Cost | E232: =E226-E230 -> -215
A234: 17 | B234: Equipment/Insurance/Bridge Stationery
B235: Boards, cards and boxes- w/off all in 1st year | E235: =' Expenses'!AN114 -> 65.2
B236: Boxes | E236: =' Expenses'!AN130 -> 16
B237: Cards and stickers | E237: =' Expenses'!AN83 -> 12
B238: Boards and cards for Congress - w/off in 1st year | E238: 529.2
B239: Insurance | E239: =' Expenses'!AN79 -> 73.5
B241: Total Cost | E241: =SUM(E235:E239) -> 695.9
A243: 18 | B243: Handbook Expenses
B244: Bezingaprint invoice | E244: =-Income!E118 -> 249 | G244: Note: Paid for from Intermediate Swiss Pairs receipts
B246: Total Cost | E246: =SUM(E244:E244) -> 249
A248: 19 | B248: Prior Year Adjustments
B249: Error : Unpresented Chques overstated last year | E249: 0 | G249: (Last year: Garden City costs overstated by a duplicated entry in unpresented cheques.)
C250: Total | E250: =SUM(E249) -> 0
B252: Items charged in wrong year - Notes only:
B253: Michael Byrne £40 Goldstone prize deducted from St Titus League entry | E253: -40
C258: Total | E258: =SUM(E253:E257) -> -40
B260: Net effect on this year's profit: | E260: =E250+E258 -> -40
... 46 more rows

Sheet Cantor Accounts
A2: CANTOR ACCOUNTS
A3: NatWest Reserve Account (Property of Cantor family, managed by MCBA):
A5: Bank Balance. | C5: 2017/18 | F5: Income & Expenditure A/c:
F6: Income:
A7: Balance B/F | C7: 6000.18 | F7: Donation | I7: 6000
A8: Transfer to MCBA re 2016/17 | C8: -181.1 | F8: Interest | I8: 1.71
A9: Transfer to MCBA re 2017/18 | C9: -172 | I9: =SUM(I7:I8) -> 6001.71
A10: Interest | C10: 1.53 | F10: Expenditure:
A11: Balance C/F | C11: =SUM(C7:C10) -> 5648.61 | F11: Contribution to MCBA in 2017-18 | I11: =-'Notes 2017-18'!E188 -> -172
F12: Contribution to MCBA relating to2016/17 | I12: -181.1
G13: Net Income | I13: =SUM(I9:I12) -> 5648.61
F15: Balance Sheet:
F16: Asset-Bank Bal. | H16: 5648.61
F17: Liability-Owed to MCBA | H17: 0
G18: Net Assets | H18: =SUM(H16:H17) -> 5648.61
F20: Reserves Brought Forward | H20: =C7+I12 -> 5819.08
F21: Surplus/Deficit for the Year | H21: =I11+C10 -> -170.47
G22: ReservesC/f | H22: =SUM(H20:H21) -> 5648.61

Sheet League Calculations
A2: Reconciliation to League Spread-sheet
A3: The totals of every column in the League ss agrees to every column total in the cash-book exactly.
A6: Final Balances:
A7: Final net of overpaid less underpaid balances: | C7: 64
